{"text_format":"3","workbook":"xlsx","n_sheets":2,"sheets":["Svatební rozpočet","Podrobnosti o rozpočtu"],"not_rendered":{"charts":1,"images":1,"defined_names":2},"read":"whole","date_system":"1900"}

{"sheet":"Svatební rozpočet","index":0,"n_rows":16,"n_cols":16,"rows_kept":16,"merged":[[1,1,1,5]]}
[{"$nulls":6}," "]
[null,"ELIŠKA + DANIEL\nUZAVŘENÍ SŇATKU"]
[{"$nulls":7}," "]
[]
[null,"KATEGORIE","ODHADOVANÉ NÁKLADY","SKUTEČNÉ NÁKLADY","ODCHYLKA","ROZPOČET V %",{"$nulls":3},"Neseřazené","Odhadované náklady","Skutečné náklady","Odhadované náklady – hodnota pořadí","Pořadí","č.","Seřazené"]
[null,{"$f":"P6","v":"Hostina"},{"$f":"VLOOKUP(TBL_Summary[[#This Row],[KATEGORIE]],TBL_RankingData,2,FALSE)","v":{"v":14500,"d":"14,500 Kč"}},{"$f":"IF(VLOOKUP(TBL_Summary[[#This Row],[KATEGORIE]],TBL_RankingData,3,FALSE)=0,\"\",VLOOKUP(TBL_Summary[[#This Row],[KATEGORIE]],TBL_RankingData,3,FALSE))","v":{"v":12800,"d":"12,800 Kč"}},{"$f":"IF(OR(TBL_Summary[[#This Row],[ODHADOVANÉ NÁKLADY]]=\"\",TBL_Summary[[#This Row],[SKUTEČNÉ NÁKLADY]]=\"\"),\"\",TBL_Summary[[#This Row],[ODHADOVANÉ NÁKLADY]]-TBL_Summary[[#This Row],[SKUTEČNÉ NÁKLADY]])","v":{"v":1700,"d":"1,700 Kč"}},{"$f":"TBL_Summary[[#This Row],[ODHADOVANÉ NÁKLADY]]/SUM(TBL_Summary[ODHADOVANÉ NÁKLADY])","v":{"v":0.48739495798319327,"d":"48.7%"}},{"$nulls":3},"Hostina",{"$f":"TBL_Reception[[#Totals],[PŘEDPOKLAD]]","v":14500},{"$f":"TBL_Reception[[#Totals],[SKUTEČNOST]]","v":12800},{"$f":"K6-O6/100","v":14499.99},{"$f":"_xlfn.RANK.AVG(M6,$M$6:$M$15)","v":1},1,{"$f":"INDEX(TBL_RankingData,MATCH(O6,$N$6:$N$15,0),1)","v":"Hostina"}]
[null,{"$f":"P7","v":"Oděv"},{"$f":"VLOOKUP(TBL_Summary[[#This Row],[KATEGORIE]],TBL_RankingData,2,FALSE)","v":{"v":4000,"d":"4,000 Kč"}},{"$f":"IF(VLOOKUP(TBL_Summary[[#This Row],[KATEGORIE]],TBL_RankingData,3,FALSE)=0,\"\",VLOOKUP(TBL_Summary[[#This Row],[KATEGORIE]],TBL_RankingData,3,FALSE))","v":{"v":2900,"d":"2,900 Kč"}},{"$f":"IF(OR(TBL_Summary[[#This Row],[ODHADOVANÉ NÁKLADY]]=\"\",TBL_Summary[[#This Row],[SKUTEČNÉ NÁKLADY]]=\"\"),\"\",TBL_Summary[[#This Row],[ODHADOVANÉ NÁKLADY]]-TBL_Summary[[#This Row],[SKUTEČNÉ NÁKLADY]])","v":{"v":1100,"d":"1,100 Kč"}},{"$f":"TBL_Summary[[#This Row],[ODHADOVANÉ NÁKLADY]]/SUM(TBL_Summary[ODHADOVANÉ NÁKLADY])","v":{"v":0.13445378151260504,"d":"13.4%"}},{"$nulls":3},"Oděv",{"$f":"TBL_Attire[[#Totals],[PŘEDPOKLAD]]","v":4000},{"$f":"TBL_Attire[[#Totals],[SKUTEČNOST]]","v":2900},{"$f":"K7-O7/100","v":3999.98},2,2,"Oděv"]
[null,"Květiny a dekorace",{"$f":"VLOOKUP(TBL_Summary[[#This Row],[KATEGORIE]],TBL_RankingData,2,FALSE)","v":{"v":3000,"d":"3,000 Kč"}},{"$f":"IF(VLOOKUP(TBL_Summary[[#This Row],[KATEGORIE]],TBL_RankingData,3,FALSE)=0,\"\",VLOOKUP(TBL_Summary[[#This Row],[KATEGORIE]],TBL_RankingData,3,FALSE))","v":""},{"$f":"IF(OR(TBL_Summary[[#This Row],[ODHADOVANÉ NÁKLADY]]=\"\",TBL_Summary[[#This Row],[SKUTEČNÉ NÁKLADY]]=\"\"),\"\",TBL_Summary[[#This Row],[ODHADOVANÉ NÁKLADY]]-TBL_Summary[[#This Row],[SKUTEČNÉ NÁKLADY]])","v":""},{"$f":"TBL_Summary[[#This Row],[ODHADOVANÉ NÁKLADY]]/SUM(TBL_Summary[ODHADOVANÉ NÁKLADY])","v":{"v":0.10084033613445378,"d":"10.1%"}},{"$nulls":3},"Květiny a dekorace",{"$f":"TBL_FlowersAndDecor[[#Totals],[PŘEDPOKLAD]]","v":3000},{"$f":"TBL_FlowersAndDecor[[#Totals],[SKUTEČNOST]]","v":0},2999.97,3,3,"Květiny a dekorace"]
[null,"Fotky a video",{"$f":"VLOOKUP(TBL_Summary[[#This Row],[KATEGORIE]],TBL_RankingData,2,FALSE)","v":{"v":2500,"d":"2,500 Kč"}},{"$f":"IF(VLOOKUP(TBL_Summary[[#This Row],[KATEGORIE]],TBL_RankingData,3,FALSE)=0,\"\",VLOOKUP(TBL_Summary[[#This Row],[KATEGORIE]],TBL_RankingData,3,FALSE))","v":""},{"$f":"IF(OR(TBL_Summary[[#This Row],[ODHADOVANÉ NÁKLADY]]=\"\",TBL_Summary[[#This Row],[SKUTEČNÉ NÁKLADY]]=\"\"),\"\",TBL_Summary[[#This Row],[ODHADOVANÉ NÁKLADY]]-TBL_Summary[[#This Row],[SKUTEČNÉ NÁKLADY]])","v":""},{"$f":"TBL_Summary[[#This Row],[ODHADOVANÉ NÁKLADY]]/SUM(TBL_Summary[ODHADOVANÉ NÁKLADY])","v":{"v":0.08403361344537816,"d":"8.4%"}},{"$nulls":3},"Hudba",{"$f":"TBL_Music[[#Totals],[PŘEDPOKLAD]]","v":1800},{"$f":"TBL_Music[[#Totals],[SKUTEČNOST]]","v":0},1799.96,5,4,"Fotky a video"]
[null,"Hudba",{"$f":"VLOOKUP(TBL_Summary[[#This Row],[KATEGORIE]],TBL_RankingData,2,FALSE)","v":{"v":1800,"d":"1,800 Kč"}},{"$f":"IF(VLOOKUP(TBL_Summary[[#This Row],[KATEGORIE]],TBL_RankingData,3,FALSE)=0,\"\",VLOOKUP(TBL_Summary[[#This Row],[KATEGORIE]],TBL_RankingData,3,FALSE))","v":""},{"$f":"IF(OR(TBL_Summary[[#This Row],[ODHADOVANÉ NÁKLADY]]=\"\",TBL_Summary[[#This Row],[SKUTEČNÉ NÁKLADY]]=\"\"),\"\",TBL_Summary[[#This Row],[ODHADOVANÉ NÁKLADY]]-TBL_Summary[[#This Row],[SKUTEČNÉ NÁKLADY]])","v":""},{"$f":"TBL_Summary[[#This Row],[ODHADOVANÉ NÁKLADY]]/SUM(TBL_Summary[ODHADOVANÉ NÁKLADY])","v":{"v":0.06050420168067227,"d":"6.1%"}},{"$nulls":3},"Fotky a video",{"$f":"TBL_PhotographsAndVideo[[#Totals],[PŘEDPOKLAD]]","v":2500},{"$f":"TBL_PhotographsAndVideo[[#Totals],[SKUTEČNOST]]","v":0},2499.95,4,5,"Hudba"]
[null,"Dary",{"$f":"VLOOKUP(TBL_Summary[[#This Row],[KATEGORIE]],TBL_RankingData,2,FALSE)","v":{"v":1100,"d":"1,100 Kč"}},{"$f":"IF(VLOOKUP(TBL_Summary[[#This Row],[KATEGORIE]],TBL_RankingData,3,FALSE)=0,\"\",VLOOKUP(TBL_Summary[[#This Row],[KATEGORIE]],TBL_RankingData,3,FALSE))","v":""},{"$f":"IF(OR(TBL_Summary[[#This Row],[ODHADOVANÉ NÁKLADY]]=\"\",TBL_Summary[[#This Row],[SKUTEČNÉ NÁKLADY]]=\"\"),\"\",TBL_Summary[[#This Row],[ODHADOVANÉ NÁKLADY]]-TBL_Summary[[#This Row],[SKUTEČNÉ NÁKLADY]])","v":""},{"$f":"TBL_Summary[[#This Row],[ODHADOVANÉ NÁKLADY]]/SUM(TBL_Summary[ODHADOVANÉ NÁKLADY])","v":{"v":0.03697478991596639,"d":"3.7%"}},{"$nulls":3},"Dary",{"$f":"TBL_FavorsAndGifts[[#Totals],[PŘEDPOKLAD]]","v":1100},{"$f":"TBL_FavorsAndGifts[[#Totals],[SKUTEČNOST]]","v":0},1099.94,6,6,"Dary"]
[null,{"$f":"P12","v":"Snubní prsteny"},{"$f":"VLOOKUP(TBL_Summary[[#This Row],[KATEGORIE]],TBL_RankingData,2,FALSE)","v":{"v":1100,"d":"1,100 Kč"}},{"$f":"IF(VLOOKUP(TBL_Summary[[#This Row],[KATEGORIE]],TBL_RankingData,3,FALSE)=0,\"\",VLOOKUP(TBL_Summary[[#This Row],[KATEGORIE]],TBL_RankingData,3,FALSE))","v":""},{"$f":"IF(OR(TBL_Summary[[#This Row],[ODHADOVANÉ NÁKLADY]]=\"\",TBL_Summary[[#This Row],[SKUTEČNÉ NÁKLADY]]=\"\"),\"\",TBL_Summary[[#This Row],[ODHADOVANÉ NÁKLADY]]-TBL_Summary[[#This Row],[SKUTEČNÉ NÁKLADY]])","v":""},{"$f":"TBL_Summary[[#This Row],[ODHADOVANÉ NÁKLADY]]/SUM(TBL_Summary[ODHADOVANÉ NÁKLADY])","v":{"v":0.03697478991596639,"d":"3.7%"}},{"$nulls":3},"Obřad",{"$f":"TBL_Ceremony[[#Totals],[PŘEDPOKLAD]]","v":800},{"$f":"TBL_Ceremony[[#Totals],[SKUTEČNOST]]","v":0},799.93,8,7,"Snubní prsteny"]
[null,"Obřad",{"$f":"VLOOKUP(TBL_Summary[[#This Row],[KATEGORIE]],TBL_RankingData,2,FALSE)","v":{"v":800,"d":"800 Kč"}},{"$f":"IF(VLOOKUP(TBL_Summary[[#This Row],[KATEGORIE]],TBL_RankingData,3,FALSE)=0,\"\",VLOOKUP(TBL_Summary[[#This Row],[KATEGORIE]],TBL_RankingData,3,FALSE))","v":""},{"$f":"IF(OR(TBL_Summary[[#This Row],[ODHADOVANÉ NÁKLADY]]=\"\",TBL_Summary[[#This Row],[SKUTEČNÉ NÁKLADY]]=\"\"),\"\",TBL_Summary[[#This Row],[ODHADOVANÉ NÁKLADY]]-TBL_Summary[[#This Row],[SKUTEČNÉ NÁKLADY]])","v":""},{"$f":"TBL_Summary[[#This Row],[ODHADOVANÉ NÁKLADY]]/SUM(TBL_Summary[ODHADOVANÉ NÁKLADY])","v":{"v":0.02689075630252101,"d":"2.7%"}},{"$nulls":3},"Papírenské zboží",{"$f":"TBL_Stationery[[#Totals],[PŘEDPOKLAD]]","v":500},{"$f":"TBL_Stationery[[#Totals],[SKUTEČNOST]]","v":0},499.92,9,8,"Obřad"]
[null,"Papírenské zboží",{"$f":"VLOOKUP(TBL_Summary[[#This Row],[KATEGORIE]],TBL_RankingData,2,FALSE)","v":{"v":500,"d":"500 Kč"}},{"$f":"IF(VLOOKUP(TBL_Summary[[#This Row],[KATEGORIE]],TBL_RankingData,3,FALSE)=0,\"\",VLOOKUP(TBL_Summary[[#This Row],[KATEGORIE]],TBL_RankingData,3,FALSE))","v":""},{"$f":"IF(OR(TBL_Summary[[#This Row],[ODHADOVANÉ NÁKLADY]]=\"\",TBL_Summary[[#This Row],[SKUTEČNÉ NÁKLADY]]=\"\"),\"\",TBL_Summary[[#This Row],[ODHADOVANÉ NÁKLADY]]-TBL_Summary[[#This Row],[SKUTEČNÉ NÁKLADY]])","v":""},{"$f":"TBL_Summary[[#This Row],[ODHADOVANÉ NÁKLADY]]/SUM(TBL_Summary[ODHADOVANÉ NÁKLADY])","v":{"v":0.01680672268907563,"d":"1.7%"}},{"$nulls":3},"Snubní prsteny",{"$f":"TBL_WeddingRings[[#Totals],[PŘEDPOKLAD]]","v":1100},{"$f":"TBL_WeddingRings[[#Totals],[SKUTEČNOST]]","v":0},1099.91,7,9,"Papírenské zboží"]
[null,"Doprava",{"$f":"VLOOKUP(TBL_Summary[[#This Row],[KATEGORIE]],TBL_RankingData,2,FALSE)","v":{"v":450,"d":"450 Kč"}},{"$f":"IF(VLOOKUP(TBL_Summary[[#This Row],[KATEGORIE]],TBL_RankingData,3,FALSE)=0,\"\",VLOOKUP(TBL_Summary[[#This Row],[KATEGORIE]],TBL_RankingData,3,FALSE))","v":""},{"$f":"IF(OR(TBL_Summary[[#This Row],[ODHADOVANÉ NÁKLADY]]=\"\",TBL_Summary[[#This Row],[SKUTEČNÉ NÁKLADY]]=\"\"),\"\",TBL_Summary[[#This Row],[ODHADOVANÉ NÁKLADY]]-TBL_Summary[[#This Row],[SKUTEČNÉ NÁKLADY]])","v":""},{"$f":"TBL_Summary[[#This Row],[ODHADOVANÉ NÁKLADY]]/SUM(TBL_Summary[ODHADOVANÉ NÁKLADY])","v":{"v":0.015126050420168067,"d":"1.5%"}},{"$nulls":3},"Doprava",{"$f":"TBL_Transportation[[#Totals],[PŘEDPOKLAD]]","v":450},{"$f":"TBL_Transportation[[#Totals],[SKUTEČNOST]]","v":0},449.9,10,10,"Doprava"]
[null,"Celkem",{"$f":"SUBTOTAL(109,TBL_Summary[ODHADOVANÉ NÁKLADY])","v":{"v":29750,"d":"29,750 Kč"}},{"$f":"SUBTOTAL(109,TBL_Summary[SKUTEČNÉ NÁKLADY])","v":{"v":15700,"d":"15,700 Kč"}},{"$f":"TBL_Summary[[#Totals],[ODHADOVANÉ NÁKLADY]]-TBL_Summary[[#Totals],[SKUTEČNÉ NÁKLADY]]","v":{"v":14050,"d":"14,050 Kč"}},{"$f":"SUBTOTAL(109,TBL_Summary[ROZPOČET V %])","v":{"v":1,"d":"100%"}}]

{"sheet":"Podrobnosti o rozpočtu","index":1,"n_rows":91,"n_cols":6,"rows_kept":91}
[{"$nulls":5}," "]
[null,"PODROBNOSTI ROZPOČTU"]
[]
[null,"HOSTINA","PŘEDPOKLAD","SKUTEČNOST","ODCHYLKA"]
[null,"Místo konání a nájemné",{"v":8000,"d":"8,000.00 Kč"},{"v":7800,"d":"7,800.00 Kč"},{"$f":"IF(OR(TBL_Reception[[#This Row],[PŘEDPOKLAD]]=\"\",TBL_Reception[[#This Row],[SKUTEČNOST]]=\"\"),\"\",TBL_Reception[[#This Row],[PŘEDPOKLAD]]-TBL_Reception[[#This Row],[SKUTEČNOST]])","v":{"v":200,"d":"200.00 Kč"}}]
[null,"Jídlo a služby",{"v":4000,"d":"4,000.00 Kč"},{"v":4200,"d":"4,200.00 Kč"},{"$f":"IF(OR(TBL_Reception[[#This Row],[PŘEDPOKLAD]]=\"\",TBL_Reception[[#This Row],[SKUTEČNOST]]=\"\"),\"\",TBL_Reception[[#This Row],[PŘEDPOKLAD]]-TBL_Reception[[#This Row],[SKUTEČNOST]])","v":{"v":-200,"d":"-200.00 Kč"}}]
[null,"Nápoje",{"v":1000,"d":"1,000.00 Kč"},{"v":800,"d":"800.00 Kč"},{"$f":"IF(OR(TBL_Reception[[#This Row],[PŘEDPOKLAD]]=\"\",TBL_Reception[[#This Row],[SKUTEČNOST]]=\"\"),\"\",TBL_Reception[[#This Row],[PŘEDPOKLAD]]-TBL_Reception[[#This Row],[SKUTEČNOST]])","v":{"v":200,"d":"200.00 Kč"}}]
[null,"Dort",{"v":1000,"d":"1,000.00 Kč"},null,{"$f":"IF(OR(TBL_Reception[[#This Row],[PŘEDPOKLAD]]=\"\",TBL_Reception[[#This Row],[SKUTEČNOST]]=\"\"),\"\",TBL_Reception[[#This Row],[PŘEDPOKLAD]]-TBL_Reception[[#This Row],[SKUTEČNOST]])","v":""}]
[null,"Různé poplatky",{"v":500,"d":"500.00 Kč"},null,{"$f":"IF(OR(TBL_Reception[[#This Row],[PŘEDPOKLAD]]=\"\",TBL_Reception[[#This Row],[SKUTEČNOST]]=\"\"),\"\",TBL_Reception[[#This Row],[PŘEDPOKLAD]]-TBL_Reception[[#This Row],[SKUTEČNOST]])","v":""}]
[null,"HOSTINA CELKEM",{"$f":"SUBTOTAL(109,TBL_Reception[PŘEDPOKLAD])","v":{"v":14500,"d":"14,500.00 Kč"}},{"$f":"SUBTOTAL(109,TBL_Reception[SKUTEČNOST])","v":{"v":12800,"d":"12,800.00 Kč"}},{"$f":"TBL_Reception[[#Totals],[PŘEDPOKLAD]]-TBL_Reception[[#Totals],[SKUTEČNOST]]","v":{"v":1700,"d":"1,700.00 Kč"}}]
[]
[]
[null,"ODĚV","PŘEDPOKLAD","SKUTEČNOST","ODCHYLKA"]
[null,"Smoking, oblek a/nebo šaty",{"v":3000,"d":"3,000.00 Kč"},{"v":2900,"d":"2,900.00 Kč"},{"$f":"IF(OR(TBL_Attire[[#This Row],[PŘEDPOKLAD]]=\"\",TBL_Attire[[#This Row],[SKUTEČNOST]]=\"\"),\"\",TBL_Attire[[#This Row],[PŘEDPOKLAD]]-TBL_Attire[[#This Row],[SKUTEČNOST]])","v":{"v":100,"d":"100.00 Kč"}}]
[null,"Změny",{"v":100,"d":"100.00 Kč"},null,{"$f":"IF(OR(TBL_Attire[[#This Row],[PŘEDPOKLAD]]=\"\",TBL_Attire[[#This Row],[SKUTEČNOST]]=\"\"),\"\",TBL_Attire[[#This Row],[PŘEDPOKLAD]]-TBL_Attire[[#This Row],[SKUTEČNOST]])","v":""}]
[null,"Čelenka a závoj",{"v":200,"d":"200.00 Kč"},null,{"$f":"IF(OR(TBL_Attire[[#This Row],[PŘEDPOKLAD]]=\"\",TBL_Attire[[#This Row],[SKUTEČNOST]]=\"\"),\"\",TBL_Attire[[#This Row],[PŘEDPOKLAD]]-TBL_Attire[[#This Row],[SKUTEČNOST]])","v":""}]
[null,"Doplňky",{"v":100,"d":"100.00 Kč"},null,{"$f":"IF(OR(TBL_Attire[[#This Row],[PŘEDPOKLAD]]=\"\",TBL_Attire[[#This Row],[SKUTEČNOST]]=\"\"),\"\",TBL_Attire[[#This Row],[PŘEDPOKLAD]]-TBL_Attire[[#This Row],[SKUTEČNOST]])","v":""}]
[null,"Účes a make-up",{"v":500,"d":"500.00 Kč"},null,{"$f":"IF(OR(TBL_Attire[[#This Row],[PŘEDPOKLAD]]=\"\",TBL_Attire[[#This Row],[SKUTEČNOST]]=\"\"),\"\",TBL_Attire[[#This Row],[PŘEDPOKLAD]]-TBL_Attire[[#This Row],[SKUTEČNOST]])","v":""}]
[null,"Různé poplatky",{"v":100,"d":"100.00 Kč"},null,{"$f":"IF(OR(TBL_Attire[[#This Row],[PŘEDPOKLAD]]=\"\",TBL_Attire[[#This Row],[SKUTEČNOST]]=\"\"),\"\",TBL_Attire[[#This Row],[PŘEDPOKLAD]]-TBL_Attire[[#This Row],[SKUTEČNOST]])","v":""}]
[null,"ODĚV CELKEM",{"$f":"SUBTOTAL(109,TBL_Attire[PŘEDPOKLAD])","v":{"v":4000,"d":"4,000.00 Kč"}},{"$f":"SUBTOTAL(109,TBL_Attire[SKUTEČNOST])","v":{"v":2900,"d":"2,900.00 Kč"}},{"$f":"TBL_Attire[[#Totals],[PŘEDPOKLAD]]-TBL_Attire[[#Totals],[SKUTEČNOST]]","v":{"v":1100,"d":"1,100.00 Kč"}}]
[]
[]
[null,"KVĚTINY A DEKORACE","PŘEDPOKLAD","SKUTEČNOST","ODCHYLKA"]
[null,"Květinová dekorace pro obřad",{"v":1000,"d":"1,000.00 Kč"},null,{"$f":"IF(OR(TBL_FlowersAndDecor[[#This Row],[PŘEDPOKLAD]]=\"\",TBL_FlowersAndDecor[[#This Row],[SKUTEČNOST]]=\"\"),\"\",TBL_FlowersAndDecor[[#This Row],[PŘEDPOKLAD]]-TBL_FlowersAndDecor[[#This Row],[SKUTEČNOST]])","v":""}]
[null,"Květiny a košíčky pro družičky",{"v":500,"d":"500.00 Kč"},null,{"$f":"IF(OR(TBL_FlowersAndDecor[[#This Row],[PŘEDPOKLAD]]=\"\",TBL_FlowersAndDecor[[#This Row],[SKUTEČNOST]]=\"\"),\"\",TBL_FlowersAndDecor[[#This Row],[PŘEDPOKLAD]]-TBL_FlowersAndDecor[[#This Row],[SKUTEČNOST]])","v":""}]
[null,"Polštářek na prstýnky",{"v":100,"d":"100.00 Kč"},null,{"$f":"IF(OR(TBL_FlowersAndDecor[[#This Row],[PŘEDPOKLAD]]=\"\",TBL_FlowersAndDecor[[#This Row],[SKUTEČNOST]]=\"\"),\"\",TBL_FlowersAndDecor[[#This Row],[PŘEDPOKLAD]]-TBL_FlowersAndDecor[[#This Row],[SKUTEČNOST]])","v":""}]
[null,"Aranžované květiny",{"v":500,"d":"500.00 Kč"},null,{"$f":"IF(OR(TBL_FlowersAndDecor[[#This Row],[PŘEDPOKLAD]]=\"\",TBL_FlowersAndDecor[[#This Row],[SKUTEČNOST]]=\"\"),\"\",TBL_FlowersAndDecor[[#This Row],[PŘEDPOKLAD]]-TBL_FlowersAndDecor[[#This Row],[SKUTEČNOST]])","v":""}]
[null,"Květiny do knoflíkových dírek",{"v":100,"d":"100.00 Kč"},null,{"$f":"IF(OR(TBL_FlowersAndDecor[[#This Row],[PŘEDPOKLAD]]=\"\",TBL_FlowersAndDecor[[#This Row],[SKUTEČNOST]]=\"\"),\"\",TBL_FlowersAndDecor[[#This Row],[PŘEDPOKLAD]]-TBL_FlowersAndDecor[[#This Row],[SKUTEČNOST]])","v":""}]
[null,"Květiny na šaty",{"v":200,"d":"200.00 Kč"},null,{"$f":"IF(OR(TBL_FlowersAndDecor[[#This Row],[PŘEDPOKLAD]]=\"\",TBL_FlowersAndDecor[[#This Row],[SKUTEČNOST]]=\"\"),\"\",TBL_FlowersAndDecor[[#This Row],[PŘEDPOKLAD]]-TBL_FlowersAndDecor[[#This Row],[SKUTEČNOST]])","v":""}]
[null,"Dekorace na hostinu",{"v":300,"d":"300.00 Kč"},null,{"$f":"IF(OR(TBL_FlowersAndDecor[[#This Row],[PŘEDPOKLAD]]=\"\",TBL_FlowersAndDecor[[#This Row],[SKUTEČNOST]]=\"\"),\"\",TBL_FlowersAndDecor[[#This Row],[PŘEDPOKLAD]]-TBL_FlowersAndDecor[[#This Row],[SKUTEČNOST]])","v":""}]
[null,"Osvětlení",{"v":200,"d":"200.00 Kč"},null,{"$f":"IF(OR(TBL_FlowersAndDecor[[#This Row],[PŘEDPOKLAD]]=\"\",TBL_FlowersAndDecor[[#This Row],[SKUTEČNOST]]=\"\"),\"\",TBL_FlowersAndDecor[[#This Row],[PŘEDPOKLAD]]-TBL_FlowersAndDecor[[#This Row],[SKUTEČNOST]])","v":""}]
[null,"Různé poplatky",{"v":100,"d":"100.00 Kč"},null,{"$f":"IF(OR(TBL_FlowersAndDecor[[#This Row],[PŘEDPOKLAD]]=\"\",TBL_FlowersAndDecor[[#This Row],[SKUTEČNOST]]=\"\"),\"\",TBL_FlowersAndDecor[[#This Row],[PŘEDPOKLAD]]-TBL_FlowersAndDecor[[#This Row],[SKUTEČNOST]])","v":""}]
[null,"KVĚTINY A DEKORACE CELKEM",{"$f":"SUBTOTAL(109,TBL_FlowersAndDecor[PŘEDPOKLAD])","v":{"v":3000,"d":"3,000.00 Kč"}},{"$f":"SUBTOTAL(109,TBL_FlowersAndDecor[SKUTEČNOST])","v":{"v":0,"d":"0.00 Kč"}},{"$f":"TBL_FlowersAndDecor[[#Totals],[PŘEDPOKLAD]]-TBL_FlowersAndDecor[[#Totals],[SKUTEČNOST]]","v":{"v":3000,"d":"3,000.00 Kč"}}]
[]
[]
[null,"HUDBA","PŘEDPOKLAD","SKUTEČNOST","ODCHYLKA"]
[null,"Hudebníci na obřad",{"v":700,"d":"700.00 Kč"},null,{"$f":"IF(OR(TBL_Music[[#This Row],[PŘEDPOKLAD]]=\"\",TBL_Music[[#This Row],[SKUTEČNOST]]=\"\"),\"\",TBL_Music[[#This Row],[PŘEDPOKLAD]]-TBL_Music[[#This Row],[SKUTEČNOST]])","v":""}]
[null,"Hudebníci na odpoledne",{"v":300,"d":"300.00 Kč"},null,{"$f":"IF(OR(TBL_Music[[#This Row],[PŘEDPOKLAD]]=\"\",TBL_Music[[#This Row],[SKUTEČNOST]]=\"\"),\"\",TBL_Music[[#This Row],[PŘEDPOKLAD]]-TBL_Music[[#This Row],[SKUTEČNOST]])","v":""}]
[null,"Skupina na hostinu, dýdžej nebo jiná zábava",{"v":200,"d":"200.00 Kč"},null,{"$f":"IF(OR(TBL_Music[[#This Row],[PŘEDPOKLAD]]=\"\",TBL_Music[[#This Row],[SKUTEČNOST]]=\"\"),\"\",TBL_Music[[#This Row],[PŘEDPOKLAD]]-TBL_Music[[#This Row],[SKUTEČNOST]])","v":""}]
[null,"Ozvučení nebo pronájem tanečního parketu",{"v":400,"d":"400.00 Kč"},null,{"$f":"IF(OR(TBL_Music[[#This Row],[PŘEDPOKLAD]]=\"\",TBL_Music[[#This Row],[SKUTEČNOST]]=\"\"),\"\",TBL_Music[[#This Row],[PŘEDPOKLAD]]-TBL_Music[[#This Row],[SKUTEČNOST]])","v":""}]
[null,"Různé poplatky",{"v":200,"d":"200.00 Kč"},null,{"$f":"IF(OR(TBL_Music[[#This Row],[PŘEDPOKLAD]]=\"\",TBL_Music[[#This Row],[SKUTEČNOST]]=\"\"),\"\",TBL_Music[[#This Row],[PŘEDPOKLAD]]-TBL_Music[[#This Row],[SKUTEČNOST]])","v":""}]
[null,"HUDBA CELKEM",{"$f":"SUBTOTAL(109,TBL_Music[PŘEDPOKLAD])","v":{"v":1800,"d":"1,800.00 Kč"}},{"$f":"SUBTOTAL(109,TBL_Music[SKUTEČNOST])","v":{"v":0,"d":"0.00 Kč"}},{"$f":"TBL_Music[[#Totals],[PŘEDPOKLAD]]-TBL_Music[[#Totals],[SKUTEČNOST]]","v":{"v":1800,"d":"1,800.00 Kč"}}]
[]
[]
[null,"FOTOGRAFIE A VIDEO","PŘEDPOKLAD","SKUTEČNOST","ODCHYLKA"]
[null,"Fotografie",{"v":1000,"d":"1,000.00 Kč"},null,{"$f":"IF(OR(TBL_PhotographsAndVideo[[#This Row],[PŘEDPOKLAD]]=\"\",TBL_PhotographsAndVideo[[#This Row],[SKUTEČNOST]]=\"\"),\"\",TBL_PhotographsAndVideo[[#This Row],[PŘEDPOKLAD]]-TBL_PhotographsAndVideo[[#This Row],[SKUTEČNOST]])","v":""}]
[null,"Video",{"v":800,"d":"800.00 Kč"},null,{"$f":"IF(OR(TBL_PhotographsAndVideo[[#This Row],[PŘEDPOKLAD]]=\"\",TBL_PhotographsAndVideo[[#This Row],[SKUTEČNOST]]=\"\"),\"\",TBL_PhotographsAndVideo[[#This Row],[PŘEDPOKLAD]]-TBL_PhotographsAndVideo[[#This Row],[SKUTEČNOST]])","v":""}]
[null,"Další výtisky a alba",{"v":500,"d":"500.00 Kč"},null,{"$f":"IF(OR(TBL_PhotographsAndVideo[[#This Row],[PŘEDPOKLAD]]=\"\",TBL_PhotographsAndVideo[[#This Row],[SKUTEČNOST]]=\"\"),\"\",TBL_PhotographsAndVideo[[#This Row],[PŘEDPOKLAD]]-TBL_PhotographsAndVideo[[#This Row],[SKUTEČNOST]])","v":""}]
[null,"Různé poplatky",{"v":200,"d":"200.00 Kč"},null,{"$f":"IF(OR(TBL_PhotographsAndVideo[[#This Row],[PŘEDPOKLAD]]=\"\",TBL_PhotographsAndVideo[[#This Row],[SKUTEČNOST]]=\"\"),\"\",TBL_PhotographsAndVideo[[#This Row],[PŘEDPOKLAD]]-TBL_PhotographsAndVideo[[#This Row],[SKUTEČNOST]])","v":""}]
[null,"FOTOGRAFIE A VIDEO CELKEM",{"$f":"SUBTOTAL(109,TBL_PhotographsAndVideo[PŘEDPOKLAD])","v":{"v":2500,"d":"2,500.00 Kč"}},{"$f":"SUBTOTAL(109,TBL_PhotographsAndVideo[SKUTEČNOST])","v":{"v":0,"d":"0.00 Kč"}},{"$f":"TBL_PhotographsAndVideo[[#Totals],[PŘEDPOKLAD]]-TBL_PhotographsAndVideo[[#Totals],[SKUTEČNOST]]","v":{"v":2500,"d":"2,500.00 Kč"}}]
[]
[]
[null,"SUVENÝRY A DÁRKY","PŘEDPOKLAD","SKUTEČNOST","ODCHYLKA"]
[null,"Dárky na uvítanou",{"v":700,"d":"700.00 Kč"},null,{"$f":"IF(OR(TBL_FavorsAndGifts[[#This Row],[PŘEDPOKLAD]]=\"\",TBL_FavorsAndGifts[[#This Row],[SKUTEČNOST]]=\"\"),\"\",TBL_FavorsAndGifts[[#This Row],[PŘEDPOKLAD]]-TBL_FavorsAndGifts[[#This Row],[SKUTEČNOST]])","v":""}]
[null,"Dárky na oslavu",{"v":200,"d":"200.00 Kč"},null,{"$f":"IF(OR(TBL_FavorsAndGifts[[#This Row],[PŘEDPOKLAD]]=\"\",TBL_FavorsAndGifts[[#This Row],[SKUTEČNOST]]=\"\"),\"\",TBL_FavorsAndGifts[[#This Row],[PŘEDPOKLAD]]-TBL_FavorsAndGifts[[#This Row],[SKUTEČNOST]])","v":""}]
[null,"Různé poplatky",{"v":200,"d":"200.00 Kč"},null,{"$f":"IF(OR(TBL_FavorsAndGifts[[#This Row],[PŘEDPOKLAD]]=\"\",TBL_FavorsAndGifts[[#This Row],[SKUTEČNOST]]=\"\"),\"\",TBL_FavorsAndGifts[[#This Row],[PŘEDPOKLAD]]-TBL_FavorsAndGifts[[#This Row],[SKUTEČNOST]])","v":""}]
[null,"SUVENÝRY A DÁRKY CELKEM",{"$f":"SUBTOTAL(109,TBL_FavorsAndGifts[PŘEDPOKLAD])","v":{"v":1100,"d":"1,100.00 Kč"}},{"$f":"SUBTOTAL(109,TBL_FavorsAndGifts[SKUTEČNOST])","v":{"v":0,"d":"0.00 Kč"}},{"$f":"TBL_FavorsAndGifts[[#Totals],[PŘEDPOKLAD]]-TBL_FavorsAndGifts[[#Totals],[SKUTEČNOST]]","v":{"v":1100,"d":"1,100.00 Kč"}}]
[]
[]
[null,"OBŘAD","PŘEDPOKLAD","SKUTEČNOST","ODCHYLKA"]
[null,"Poplatek za prostory",{"v":500,"d":"500.00 Kč"},null,{"$f":"IF(OR(TBL_Ceremony[[#This Row],[PŘEDPOKLAD]]=\"\",TBL_Ceremony[[#This Row],[SKUTEČNOST]]=\"\"),\"\",TBL_Ceremony[[#This Row],[PŘEDPOKLAD]]-TBL_Ceremony[[#This Row],[SKUTEČNOST]])","v":""}]
[null,"Poplatek pro kněze nebo dar pro církev",{"v":200,"d":"200.00 Kč"},null,{"$f":"IF(OR(TBL_Ceremony[[#This Row],[PŘEDPOKLAD]]=\"\",TBL_Ceremony[[#This Row],[SKUTEČNOST]]=\"\"),\"\",TBL_Ceremony[[#This Row],[PŘEDPOKLAD]]-TBL_Ceremony[[#This Row],[SKUTEČNOST]])","v":""}]
[null,"Různé poplatky",{"v":100,"d":"100.00 Kč"},null,{"$f":"IF(OR(TBL_Ceremony[[#This Row],[PŘEDPOKLAD]]=\"\",TBL_Ceremony[[#This Row],[SKUTEČNOST]]=\"\"),\"\",TBL_Ceremony[[#This Row],[PŘEDPOKLAD]]-TBL_Ceremony[[#This Row],[SKUTEČNOST]])","v":""}]
[null,"OBŘAD CELKEM",{"$f":"SUBTOTAL(109,TBL_Ceremony[PŘEDPOKLAD])","v":{"v":800,"d":"800.00 Kč"}},{"$f":"SUBTOTAL(109,TBL_Ceremony[SKUTEČNOST])","v":{"v":0,"d":"0.00 Kč"}},{"$f":"TBL_Ceremony[[#Totals],[PŘEDPOKLAD]]-TBL_Ceremony[[#Totals],[SKUTEČNOST]]","v":{"v":800,"d":"800.00 Kč"}}]
[]
[]
[null,"PAPÍRNICTVÍ","PŘEDPOKLAD","SKUTEČNOST","ODCHYLKA"]
[null,"Svatební oznámení",{"v":50,"d":"50.00 Kč"},null,{"$f":"IF(OR(TBL_Stationery[[#This Row],[PŘEDPOKLAD]]=\"\",TBL_Stationery[[#This Row],[SKUTEČNOST]]=\"\"),\"\",TBL_Stationery[[#This Row],[PŘEDPOKLAD]]-TBL_Stationery[[#This Row],[SKUTEČNOST]])","v":""}]
[null,"Pozvánky a odpovědi",{"v":100,"d":"100.00 Kč"},null,{"$f":"IF(OR(TBL_Stationery[[#This Row],[PŘEDPOKLAD]]=\"\",TBL_Stationery[[#This Row],[SKUTEČNOST]]=\"\"),\"\",TBL_Stationery[[#This Row],[PŘEDPOKLAD]]-TBL_Stationery[[#This Row],[SKUTEČNOST]])","v":""}]
[null,"Programy",{"v":50,"d":"50.00 Kč"},null,{"$f":"IF(OR(TBL_Stationery[[#This Row],[PŘEDPOKLAD]]=\"\",TBL_Stationery[[#This Row],[SKUTEČNOST]]=\"\"),\"\",TBL_Stationery[[#This Row],[PŘEDPOKLAD]]-TBL_Stationery[[#This Row],[SKUTEČNOST]])","v":""}]
[null,"Kartičky k zasedacímu pořádku a jmenovky na stůl",{"v":50,"d":"50.00 Kč"},null,{"$f":"IF(OR(TBL_Stationery[[#This Row],[PŘEDPOKLAD]]=\"\",TBL_Stationery[[#This Row],[SKUTEČNOST]]=\"\"),\"\",TBL_Stationery[[#This Row],[PŘEDPOKLAD]]-TBL_Stationery[[#This Row],[SKUTEČNOST]])","v":""}]
[null,"Jídelní lístky",{"v":50,"d":"50.00 Kč"},null,{"$f":"IF(OR(TBL_Stationery[[#This Row],[PŘEDPOKLAD]]=\"\",TBL_Stationery[[#This Row],[SKUTEČNOST]]=\"\"),\"\",TBL_Stationery[[#This Row],[PŘEDPOKLAD]]-TBL_Stationery[[#This Row],[SKUTEČNOST]])","v":""}]
[null,"Děkovné kartičky",{"v":50,"d":"50.00 Kč"},null,{"$f":"IF(OR(TBL_Stationery[[#This Row],[PŘEDPOKLAD]]=\"\",TBL_Stationery[[#This Row],[SKUTEČNOST]]=\"\"),\"\",TBL_Stationery[[#This Row],[PŘEDPOKLAD]]-TBL_Stationery[[#This Row],[SKUTEČNOST]])","v":""}]
[null,"Poštovné",{"v":50,"d":"50.00 Kč"},null,{"$f":"IF(OR(TBL_Stationery[[#This Row],[PŘEDPOKLAD]]=\"\",TBL_Stationery[[#This Row],[SKUTEČNOST]]=\"\"),\"\",TBL_Stationery[[#This Row],[PŘEDPOKLAD]]-TBL_Stationery[[#This Row],[SKUTEČNOST]])","v":""}]
[null,"Různé poplatky",{"v":100,"d":"100.00 Kč"},null,{"$f":"IF(OR(TBL_Stationery[[#This Row],[PŘEDPOKLAD]]=\"\",TBL_Stationery[[#This Row],[SKUTEČNOST]]=\"\"),\"\",TBL_Stationery[[#This Row],[PŘEDPOKLAD]]-TBL_Stationery[[#This Row],[SKUTEČNOST]])","v":""}]
[null,"PAPÍRNICTVÍ CELKEM",{"$f":"SUBTOTAL(109,TBL_Stationery[PŘEDPOKLAD])","v":{"v":500,"d":"500.00 Kč"}},{"$f":"SUBTOTAL(109,TBL_Stationery[SKUTEČNOST])","v":{"v":0,"d":"0.00 Kč"}},{"$f":"TBL_Stationery[[#Totals],[PŘEDPOKLAD]]-TBL_Stationery[[#Totals],[SKUTEČNOST]]","v":{"v":500,"d":"500.00 Kč"}}]
[]
[]
[null,"SNUBNÍ PRSTENY","PŘEDPOKLAD","SKUTEČNOST","ODCHYLKA"]
[null,"Snubní prsteny",{"v":1000,"d":"1,000.00 Kč"},null,{"$f":"IF(OR(TBL_WeddingRings[[#This Row],[PŘEDPOKLAD]]=\"\",TBL_WeddingRings[[#This Row],[SKUTEČNOST]]=\"\"),\"\",TBL_WeddingRings[[#This Row],[PŘEDPOKLAD]]-TBL_WeddingRings[[#This Row],[SKUTEČNOST]])","v":""}]
[null,"Doplňky k prstenům",{"v":100,"d":"100.00 Kč"},null,{"$f":"IF(OR(TBL_WeddingRings[[#This Row],[PŘEDPOKLAD]]=\"\",TBL_WeddingRings[[#This Row],[SKUTEČNOST]]=\"\"),\"\",TBL_WeddingRings[[#This Row],[PŘEDPOKLAD]]-TBL_WeddingRings[[#This Row],[SKUTEČNOST]])","v":""}]
[null,"SNUBNÍ PRSTENY CELKEM",{"$f":"SUBTOTAL(109,TBL_WeddingRings[PŘEDPOKLAD])","v":{"v":1100,"d":"1,100.00 Kč"}},{"$f":"SUBTOTAL(109,TBL_WeddingRings[SKUTEČNOST])","v":{"v":0,"d":"0.00 Kč"}},{"$f":"TBL_WeddingRings[[#Totals],[PŘEDPOKLAD]]-TBL_WeddingRings[[#Totals],[SKUTEČNOST]]","v":{"v":1100,"d":"1,100.00 Kč"}}]
[]
[]
[null,"DOPRAVA  ","PŘEDPOKLAD","SKUTEČNOST","ODCHYLKA"]
[null,"Pronájem hlavního auta",{"v":100,"d":"100.00 Kč"},null,{"$f":"IF(OR(TBL_Transportation[[#This Row],[PŘEDPOKLAD]]=\"\",TBL_Transportation[[#This Row],[SKUTEČNOST]]=\"\"),\"\",TBL_Transportation[[#This Row],[PŘEDPOKLAD]]-TBL_Transportation[[#This Row],[SKUTEČNOST]])","v":""}]
[null,"Pronájem auta pro hosty",{"v":100,"d":"100.00 Kč"},null,{"$f":"IF(OR(TBL_Transportation[[#This Row],[PŘEDPOKLAD]]=\"\",TBL_Transportation[[#This Row],[SKUTEČNOST]]=\"\"),\"\",TBL_Transportation[[#This Row],[PŘEDPOKLAD]]-TBL_Transportation[[#This Row],[SKUTEČNOST]])","v":""}]
[null,"Doprava pro hosty z daleka",{"v":100,"d":"100.00 Kč"},null,{"$f":"IF(OR(TBL_Transportation[[#This Row],[PŘEDPOKLAD]]=\"\",TBL_Transportation[[#This Row],[SKUTEČNOST]]=\"\"),\"\",TBL_Transportation[[#This Row],[PŘEDPOKLAD]]-TBL_Transportation[[#This Row],[SKUTEČNOST]])","v":""}]
[null,"Parkoviště s obsluhou",{"v":50,"d":"50.00 Kč"},null,{"$f":"IF(OR(TBL_Transportation[[#This Row],[PŘEDPOKLAD]]=\"\",TBL_Transportation[[#This Row],[SKUTEČNOST]]=\"\"),\"\",TBL_Transportation[[#This Row],[PŘEDPOKLAD]]-TBL_Transportation[[#This Row],[SKUTEČNOST]])","v":""}]
[null,"Různé poplatky",{"v":100,"d":"100.00 Kč"},null,{"$f":"IF(OR(TBL_Transportation[[#This Row],[PŘEDPOKLAD]]=\"\",TBL_Transportation[[#This Row],[SKUTEČNOST]]=\"\"),\"\",TBL_Transportation[[#This Row],[PŘEDPOKLAD]]-TBL_Transportation[[#This Row],[SKUTEČNOST]])","v":""}]
[null,"DOPRAVA CELKEM",{"$f":"SUBTOTAL(109,TBL_Transportation[PŘEDPOKLAD])","v":{"v":450,"d":"450.00 Kč"}},{"$f":"SUBTOTAL(109,TBL_Transportation[SKUTEČNOST])","v":{"v":0,"d":"0.00 Kč"}},{"$f":"TBL_Transportation[[#Totals],[PŘEDPOKLAD]]-TBL_Transportation[[#Totals],[SKUTEČNOST]]","v":{"v":450,"d":"450.00 Kč"}}]